fUSD/lending_fUSD_20250517
["ID","MTS","AMOUNT","RATE_DAILY","PERIOD"]
[361363131,1747516237916,-150.0,0.00013836,2]
[361363132,1747516237928,-521.95187316,0.00013836,2]
[361363133,1747516237938,-8841.97,0.00013837,2]
[361363134,1747516237947,-18377.53,0.00013837,2]
[361363135,1747516237957,-287.72146159,0.00013844,2]
[361363136,1747516237967,-287.72146159,0.00013856,2]
[361363137,1747516237977,-287.72146159,0.00013867,2]
[361363138,1747516237987,-500.0,0.00013873,2]
[361363139,1747516237998,-500.0,0.00013873,2]
[361363140,1747516238008,-287.72146159,0.00013878,2]
[361363141,1747516238018,-287.72146159,0.00013889,2]
[361363142,1747516238028,-425.87031873,0.00013894,2]
[361363143,1747516238038,-621.59498975,0.00013894,2]
[361363145,1747516238047,-621.59498975,0.00013894,2]
[361363146,1747516238056,-621.59498975,0.00013894,2]
[361363147,1747516238066,-621.59498975,0.00013894,2]
[361363148,1747516238076,-621.59498975,0.00013894,2]
[361363149,1747516238085,-621.59498975,0.00013894,2]
[361363150,1747516238094,-621.59498975,0.00013894,2]
[361363151,1747516238103,-621.59498975,0.00013894,2]
[361363152,1747516238113,-621.59498975,0.00013894,2]
[361363153,1747516238122,-621.59498975,0.00013894,2]
[361363154,1747516238131,-621.59498975,0.00013894,2]
[361363155,1747516238141,-621.59498975,0.00013894,2]
[361363156,1747516238151,-621.59498975,0.00013894,2]
[361363157,1747516238160,-621.59498975,0.00013894,2]
[361363158,1747516238170,-621.59498975,0.00013894,2]
[361363159,1747516238179,-621.59498975,0.00013894,2]
[361363160,1747516238188,-621.59498975,0.00013894,2]
[361363161,1747516238198,-621.59498975,0.00013894,2]
[361363162,1747516238207,-621.59498975,0.00013894,2]
[361363163,1747516238216,-621.59498975,0.00013894,2]
[361363164,1747516238226,-621.59498975,0.00013894,2]
[361363165,1747516238235,-621.59498975,0.00013894,2]
[361363166,1747516238244,-621.59498975,0.00013894,2]
[361363167,1747516238254,-621.59498975,0.00013894,2]
[361363168,1747516238263,-621.59498975,0.00013894,2]
[361363169,1747516238272,-621.59498975,0.00013894,2]
[361363170,1747516238282,-621.59498975,0.00013894,2]
[361363171,1747516238294,-621.59498975,0.00013894,2]
[361363172,1747516238304,-621.59498975,0.00013894,2]
[361363173,1747516238314,-621.59498975,0.00013894,2]
[361363174,1747516238323,-621.59498975,0.00013894,2]
[361363175,1747516238333,-621.59498975,0.00013894,2]
[361363176,1747516238342,-621.59498975,0.00013894,2]
[361363177,1747516238352,-621.59498975,0.00013894,2]
[361363178,1747516238362,-621.59498975,0.00013894,2]
[361363179,1747516238371,-621.59498975,0.00013894,2]
[361363180,1747516238381,-621.59498975,0.00013894,2]
[361363181,1747516238391,-621.59498975,0.00013894,2]
[361363182,1747516238400,-621.59498975,0.00013894,2]
[361363183,1747516238410,-621.59498975,0.00013894,2]
[361363184,1747516238420,-621.59498975,0.00013894,2]
[361363185,1747516238430,-621.59498975,0.00013894,2]
[361363186,1747516238439,-621.59498975,0.00013894,2]
[361363187,1747516238449,-621.59498975,0.00013894,2]
[361363188,1747516238459,-621.59498975,0.00013894,2]
[361363189,1747516238469,-621.59498975,0.00013894,2]
[361363190,1747516238478,-621.59498975,0.00013894,2]
[361363191,1747516238488,-621.59498975,0.00013894,2]
[361363192,1747516238498,-621.59498975,0.00013894,2]
[361363193,1747516238508,-621.59498975,0.00013894,2]
[361363194,1747516238518,-199.75446254,0.00013899,2]
[361363195,1747516238528,-183.0135185,0.00013899,2]
[361363196,1747516238537,-208.84220964,0.00013899,2]
[361363197,1747516238547,-220.46439311,0.00013899,2]
[361363198,1747516238557,-1881.94513181,0.000139,2]
[361363199,1747516238566,-356.31836414,0.000139,2]
[361363200,1747516238577,-899.36563778,0.000139,2]
[361363201,1747516238587,-287.72146159,0.000139,2]
[361363202,1747516238596,-759.58834404,0.000139,2]
[361363203,1747516238605,-521.89545555,0.000139,2]
[361363204,1747516238615,-169991.48209576,0.000139,2]
[361363205,1747516238624,-372.91752937,0.000139,2]
[361363206,1747516238634,-161.6410487,0.000139,2]
[361363207,1747516238644,-750.93533326,0.000139,2]
[361363208,1747516238653,-151.0,0.00013915,2]
[361363209,1747516238663,-191.71702269,0.00013915,2]
[361363210,1747516238672,-500.0,0.00013973,2]
[361363211,1747516238682,-500.0,0.00013973,2]
[361363212,1747516238691,-520.54168207,0.00013973,2]
[361363213,1747516238700,-500.0,0.00013973,2]
[361363214,1747516238711,-500.0,0.00013973,2]
[361363215,1747516238720,-500.0,0.00013973,2]
[361363216,1747516238729,-505.279035,0.00013973,2]
[361363217,1747516238738,-500.0,0.00013973,2]
[361363218,1747516238748,-461.48676589,0.00013973,2]
[361363219,1747516238757,-500.0,0.00013973,2]
[361363220,1747516238767,-500.0,0.00013973,2]
[361363221,1747516238776,-500.0,0.00013973,2]
[361363222,1747516238785,-150.0,0.00013999,2]
[361363223,1747516238794,-428.82817181,0.00014,2]
[361363224,1747516238805,-314850.16954582,0.00014,2]
[361363228,1747516240274,-1719.25,0.00014,2]
[361363229,1747516240288,-1570.44362619,0.00014,2]
[361363230,1747516240304,-841.61717054,0.00014,2]
[361363231,1747516240315,-1036.7694,0.00014,2]
[361363232,1747516240347,-1352.16595033,0.00014,2]
[361363233,1747516240359,-6202.75,0.00014,2]
[361363234,1747516240372,-263.7705283,0.00014,2]
[361363235,1747516240828,-150.0,0.00012796,2]
[361363236,1747516240839,-1006970.25712517,0.00014,2]
[361363237,1747516240848,-4053763.09436572,0.00014,2]
[361363238,1747516240857,-200.0,0.00014,2]
[361363239,1747516240866,-163.93,0.00014015,2]
[361363240,1747516240877,-200.0,0.0001414,2]
[361363241,1747516240887,-165.42,0.00014194,2]
[361363242,1747516240898,-158.61,0.00014305,2]
[361363243,1747516240908,-200.0,0.00014351,2]
[361363244,1747516240919,-500.0,0.00014421,2]
[361363245,1747516240928,-500.0,0.00014421,2]
[361363246,1747516240938,-1359.84,0.00014443,2]
[361363247,1747516240949,-511.64314303,0.00014521,2]
[361363248,1747516240958,-529.41697482,0.00014521,2]
[361363249,1747516240967,-1002.37137733,0.00014521,2]
[361363250,1747516240977,-1000.0,0.00014521,2]
[361363251,1747516240985,-500.0,0.00014521,2]
[361363252,1747516240995,-1000.0,0.00014521,2]
[361363253,1747516241004,-501.92231379,0.00014521,2]
[361363254,1747516241013,-500.0,0.00014521,2]
[361363255,1747516241022,-1000.0,0.00014577,2]
[361363256,1747516241031,-250.0,0.00014626,2]
[361363257,1747516241040,-200.0,0.00014626,2]
[361363258,1747516241049,-250.0,0.00014693,2]
[361363259,1747516241058,-200.0,0.00014693,2]
[361363260,1747516241067,-202.0,0.00014705,5]
[361363261,1747516241076,-420.0,0.0001473,2]
[361363262,1747516241086,-1680.0,0.00014781,2]
[361363263,1747516241095,-255.0,0.00014957,2]
[361363264,1747516241104,-5499.999999,0.00015,2]
[361363265,1747516241113,-250.0,0.00015,2]
[361363266,1747516241122,-273.40546655,0.00015068,2]
[361363267,1747516241132,-150.0,0.00015068,2]
[361363268,1747516241141,-150.0,0.00015369,2]
[361363269,1747516241150,-1690.07,0.0001542,2]
[361363270,1747516241159,-201.5,0.00015443,2]
[361363271,1747516241168,-165.42,0.00015484,2]
[361363272,1747516241177,-202.0,0.00015593,6]
[361363273,1747516241186,-151.15,0.00015611,2]
[361363274,1747516241195,-1004.29,0.00015619,2]
[361363275,1747516241204,-151.15,0.00015626,2]
[361363276,1747516241214,-151.15,0.00015642,2]
[361363277,1747516241223,-171.28,0.00015648,2]
[361363278,1747516241233,-500.0,0.00015657,2]
[361363279,1747516241242,-151.15,0.00015657,2]
[361363280,1747516241251,-151.15,0.00015673,2]
[361363281,1747516241261,-151.15,0.00015689,2]
[361363282,1747516241270,-158.61,0.00015895,2]
[361363283,1747516241279,-168.07,0.00015896,7]
[361363284,1747516241289,-168.07,0.00015896,7]
[361363285,1747516241302,-168.07,0.00015896,7]
[361363286,1747516241311,-196.0,0.00015896,7]
[361363287,1747516241321,-168.07,0.00015897,7]
[361363288,1747516241330,-200.0,0.00015898,7]
[361363289,1747516241340,-160.6955,0.00015898,7]
[361363290,1747516241349,-168.07,0.00015898,7]
[361363291,1747516241359,-200.0,0.00015898,7]
[361363292,1747516241368,-168.07,0.00015898,7]
[361363293,1747516241377,-168.07,0.00015904,7]
[361363294,1747516241387,-168.07,0.00015904,7]
[361363295,1747516241396,-168.07,0.00015904,7]
[361363296,1747516241405,-168.07,0.00015904,7]
[361363297,1747516241415,-168.07,0.00015904,7]
[361363298,1747516241424,-168.07,0.00015905,7]
[361363299,1747516241434,-168.07,0.00015905,7]
[361363300,1747516241443,-168.07,0.00015905,7]
[361363301,1747516241452,-168.07,0.00015905,7]
[361363302,1747516241461,-168.07,0.00015905,7]
[361363303,1747516241471,-168.07,0.00015905,7]
[361363304,1747516241480,-160.6955,0.00015905,7]
[361363305,1747516241490,-168.07,0.00015905,7]
[361363306,1747516241502,-168.07,0.00015906,7]
[361363307,1747516241511,-168.07,0.00015906,7]
[361363308,1747516241520,-160.6955,0.00015906,7]
[361363309,1747516241530,-168.07,0.00015906,7]
[361363310,1747516241539,-168.07,0.00015906,7]
[361363311,1747516241548,-160.6955,0.00015906,7]
[361363312,1747516241558,-168.07,0.00015906,7]
[361363313,1747516241568,-203.51856,0.00015907,7]
[361363314,1747516241577,-168.07,0.00015907,7]
[361363315,1747516241587,-200.0,0.00015907,7]
[361363316,1747516241598,-160.6955,0.00015907,7]
[361363317,1747516241607,-168.07,0.00015907,7]
[361363318,1747516241617,-200.0,0.00015907,7]
[361363319,1747516241628,-168.07,0.00015907,7]
[361363320,1747516241638,-200.0,0.00015907,7]
[361363321,1747516241648,-160.6955,0.00015907,7]
[361363322,1747516241657,-168.07,0.00015907,7]
[361363323,1747516241667,-168.07,0.00015907,7]
[361363324,1747516241677,-160.6955,0.00015907,7]
[361363325,1747516241686,-168.07,0.00015907,7]
[361363326,1747516241696,-200.0,0.00015908,7]
[361363327,1747516241706,-160.6955,0.00015908,7]
[361363328,1747516241715,-196.0,0.00015908,7]
[361363329,1747516241724,-196.0,0.00015908,7]
[361363330,1747516241734,-196.0,0.00015908,7]
[361363331,1747516241743,-196.0,0.00015908,7]
[361363332,1747516241752,-200.0,0.00015908,7]
[361363333,1747516241762,-168.07,0.00015908,7]
[361363334,1747516241772,-200.0,0.00015908,7]
[361363335,1747516241781,-160.6955,0.00015908,7]
[361363336,1747516241791,-168.07,0.00015908,7]
[361363337,1747516241800,-168.07,0.00015908,7]
[361363338,1747516241810,-168.07,0.00015908,7]
[361363339,1747516241819,-168.07,0.00015908,7]
[361363340,1747516241828,-168.07,0.00015908,7]
[361363341,1747516241837,-168.07,0.00015909,7]
[361363342,1747516241847,-160.6955,0.00015909,7]
[361363343,1747516241856,-168.07,0.0001591,7]
[361363344,1747516241866,-168.07,0.0001591,7]
[361363345,1747516241875,-200.0,0.00015911,7]
[361363346,1747516241884,-168.07,0.00015911,7]
[361363347,1747516241894,-200.0,0.00015911,7]
[361363348,1747516241903,-160.6955,0.00015911,7]
[361363349,1747516241912,-168.07,0.0001593,7]
[361363350,1747516241922,-168.07,0.00015973,7]
[361363351,1747516241931,-500.0,0.00015973,2]
[361363352,1747516241941,-500.0,0.00015973,2]
[361363353,1747516241950,-500.0,0.00015973,2]
[361363354,1747516241960,-500.0,0.00015973,2]
[361363355,1747516241970,-13931.45,0.00016,2]
[361363356,1747516241980,-500.0,0.0001604,2]
[361363357,1747516241989,-1359.84,0.00016048,2]
[361363358,1747516241998,-587.0,0.00016147,2]
[361363359,1747516242008,-283.0,0.00016175,2]
[361363360,1747516242019,-1000.0,0.00016196,2]
[361363361,1747516242030,-1126.0,0.00016259,2]
[361363362,1747516242040,-1000.0,0.000163,2]
[361363363,1747516242050,-1000.0,0.000164,2]
[361363364,1747516242060,-202.0,0.00016481,7]
[361363365,1747516242071,-974.81439784,0.00016521,2]
[361363366,1747516242080,-1000.0,0.00016521,2]
[361363367,1747516242090,-1000.0,0.000167,2]
[361363368,1747516242099,-150.0,0.00016739,2]
[361363369,1747516242108,-2728.496,0.00016764,2]
[361363370,1747516242118,-190.595,0.00016764,2]
[361363371,1747516242127,-165.42,0.00016774,2]
[361363372,1747516242138,-151.0,0.00016826,2]
[361363373,1747516242147,-151.0,0.00016837,2]
[361363374,1747516242156,-151.0,0.00016845,2]
[361363375,1747516242166,-151.0,0.00016853,2]
[361363376,1747516242176,-300.0,0.00017,2]
[361363377,1747516242185,-1500.0,0.00017068,2]
[361363378,1747516242194,-521.89545549,0.00017143,2]
[361363379,1747516242204,-207.4,0.0001726,2]
[361363380,1747516242213,-202.0,0.0001737,8]
[361363381,1747516242224,-170.02,0.00017471,2]
[361363382,1747516242234,-352.99,0.00017471,2]
[361363383,1747516242244,-318.32,0.00017471,2]
[361363384,1747516242254,-170.02,0.00017471,2]
[361363385,1747516242264,-158.61,0.00017484,2]
[361363386,1747516242274,-2035.9442603,0.00017616,2]
[361363387,1747516242283,-457.84,0.00017631,2]
[361363388,1747516242296,-1359.84,0.00017653,2]
[361363389,1747516242305,-1690.07,0.00017684,2]
[361363390,1747516242315,-196.0,0.000177,2]
[361363391,1747516242324,-1000.0,0.00017816,2]
[361363392,1747516242334,-232.14,0.00017913,2]
[361363393,1747516242344,-165.42,0.00018065,2]
[361363394,1747516242354,-150.0,0.00018109,2]
[361363395,1747516242363,-202.0,0.00018258,9]
[361363396,1747516242373,-215.0738,0.00018629,2]
[361363397,1747516242385,-899.36563778,0.00018765,2]
[361363398,1747516242395,-500.0,0.00018848,2]
[361363399,1747516242404,-500.0,0.00018848,2]
[361363400,1747516242414,-200.0,0.00018848,2]
[361363401,1747516242423,-1400.72399014,0.00018904,2]
[361363402,1747516242432,-1400.72399014,0.00018959,2]
[361363405,1747516242442,-27139.9575234,0.00018989,2]
[361363407,1747516242451,-4881.2787404,0.00018989,2]
[361363409,1747516242461,-324.87794129,0.00019,2]
[361363410,1747516242471,-80721.79858669,0.00019,2]
[361363411,1747516242480,-1000.0,0.00019,2]
[361363412,1747516242490,-1000.0,0.00019,2]
[361363413,1747516242499,-1000.0,0.00019,2]
[361363414,1747516242508,-1000.0,0.00019,2]
[361363415,1747516242518,-1000.0,0.00019,2]
[361363417,1747516242527,-1000.0,0.00019,2]
[361363420,1747516242537,-1000.0,0.00019,2]
[361363422,1747516242546,-1000.0,0.00019,2]
[361363424,1747516242556,-1000.0,0.00019,2]
[361363427,1747516242565,-1000.0,0.00019,2]
[361363431,1747516242576,-1000.0,0.00019,2]
[361363433,1747516242586,-1000.0,0.00019,2]
[361363434,1747516242595,-1000.0,0.00019,2]
[361363435,1747516242605,-1000.0,0.00019,2]
[361363436,1747516242615,-1000.0,0.00019,2]
[361363437,1747516242624,-1000.0,0.00019,2]
[361363438,1747516242634,-1000.0,0.00019,2]
[361363439,1747516242643,-1000.0,0.00019,2]
[361363440,1747516242652,-1000.0,0.00019,2]
[361363441,1747516242662,-1000.0,0.00019,2]
[361363443,1747516242671,-1000.0,0.00019,2]
[361363444,1747516242680,-1000.0,0.00019,2]
[361363445,1747516242690,-1000.0,0.00019,2]
[361363446,1747516242699,-1000.0,0.00019,2]
[361363447,1747516242708,-1000.0,0.00019,2]
[361363448,1747516242717,-348.86241904,0.00019,2]
[361363451,1747516242727,-350.0,0.00019,2]
[361363452,1747516242736,-30264.0002499,0.00019028,2]
[361363453,1747516242745,-1496.9721033,0.00019028,2]
[361363454,1747516242754,-1400.72399014,0.00019041,2]
[361363455,1747516242764,-158.61,0.00019074,2]
[361363456,1747516242773,-1400.72399014,0.00019123,2]
[361363457,1747516242782,-300.0,0.0001913,2]
[361363458,1747516242791,-170.02,0.0001913,2]
[361363459,1747516242802,-170.02,0.0001913,2]
[361363460,1747516242812,-169.96,0.0001914,2]
[361363461,1747516242821,-202.0,0.00019146,10]
[361363462,1747516242831,-228.59214918,0.00019178,2]
[361363463,1747516242840,-157.96,0.00019178,2]
[361363464,1747516242849,-1400.72399014,0.00019205,2]
[361363465,1747516242858,-1359.84,0.00019258,2]
[361363466,1747516242867,-1400.72399014,0.00019288,2]
[361363467,1747516242877,-1400.72399014,0.00019342,2]
[361363468,1747516242886,-165.42,0.00019355,2]
[361363469,1747516242895,-1002.68764784,0.000194,2]
[361363470,1747516242904,-1400.72399014,0.00019425,2]
[361363471,1747516242914,-1000.0,0.00019436,2]
[361363472,1747516242923,-150.0,0.00019478,2]
[361363473,1747516242932,-1400.72399014,0.00019507,2]
[361363474,1747516242942,-1400.72399014,0.00019589,2]
[361363475,1747516242951,-1400.72399014,0.00019644,2]
[361363476,1747516242960,-416.07,0.00019658,2]
[361363477,1747516242969,-1400.72399014,0.00019726,2]
[361363478,1747516242978,-176.78455515,0.000199,2]
[361363479,1747516242987,-1690.07,0.00019947,2]
[361363480,1747516242996,-223.0315306,0.00019998,2]
[361363481,1747516243006,-251156.21152277,0.0002,5]
[361363482,1747516243015,-468.9594,0.0002,2]
[361363483,1747516243024,-468.9594,0.0002,2]
[361363484,1747516243033,-468.9594,0.0002,2]
[361363485,1747516243042,-468.9594,0.0002,2]
[361363486,1747516243052,-468.9594,0.0002,2]
[361363487,1747516243061,-468.9594,0.0002,2]
[361363489,1747516243070,-468.9594,0.0002,2]
[361363491,1747516243079,-1333.33333,0.0002,2]
[361363494,1747516243088,-200.0,0.0002,2]
[361363496,1747516243097,-4000.0,0.0002,4]
[361363498,1747516243106,-202.0,0.00020034,11]
[361363500,1747516243116,-594.78530946,0.00020144,2]
[361363502,1747516243125,-269.69,0.00020187,2]
[361363503,1747516243135,-521.89545549,0.00020386,2]
[361363504,1747516243144,-324.31,0.00020768,2]
[361363505,1747516243153,-905.44,0.0002077,2]
[361363506,1747516243162,-150.0,0.00020848,2]
[361363507,1747516243172,-356.31836413,0.0002089,2]
[361363509,1747516243182,-202.0,0.00020922,12]
[361363511,1747516243191,-155.85458022,0.00021,4]
[361363513,1747516243200,-400.0,0.00021,2]
[361363515,1747516243209,-231.28369723,0.00021367,2]
[361363517,1747516243218,-325.01,0.00021592,2]
[361363519,1747516243227,-9999.99,0.00021757,2]
[361363522,1747516243236,-1781.83,0.00021757,2]
[361363523,1747516243245,-702.84,0.00021757,2]
[361363524,1747516243254,-150.99,0.00021757,2]
[361363525,1747516243263,-1094.17,0.00021757,5]
[361363526,1747516243272,-150.99,0.00021757,2]
[361363527,1747516243281,-202.0,0.0002181,13]
[361363528,1747516243292,-1004.29,0.00021867,2]
[361363529,1747516243303,-180.0,0.00021913,2]
[361363531,1747516243312,-160.4,0.00021918,2]
[361363532,1747516243322,-500.0,0.00021918,2]
[361363533,1747516243331,-516.55,0.000222,2]
[361363534,1747516243341,-1690.07,0.00022211,2]
[361363535,1747516243351,-150.0,0.00022218,2]
[361363536,1747516243360,-202.0,0.00022698,14]
[361363537,1747516243370,-239.84119403,0.00022736,2]
[361363538,1747516243380,-200.0,0.00023,2]
[361363539,1747516243390,-450.0,0.00023,2]
[361363540,1747516243399,-4000.0,0.00023,4]
[361363541,1747516243409,-162.71,0.00023247,2]
[361363542,1747516243419,-449.95,0.00023255,2]
[361363543,1747516243428,-202.0,0.00023587,15]
[361363544,1747516243438,-150.0,0.00023588,2]
[361363545,1747516243448,-899.36563778,0.00023629,2]
[361363546,1747516243458,-521.89545549,0.00023629,2]
[361363547,1747516243468,-182.11,0.00023836,2]
[361363548,1747516243478,-248.71531821,0.00024105,2]
[361363549,1747516243487,-150.2,0.00024107,2]
[361363550,1747516243497,-1076.0,0.00024111,2]
[361363551,1747516243506,-202.0,0.00024475,17]
[361363552,1747516243515,-1690.07,0.00024475,2]
[361363553,1747516243525,-2321.9,0.000245,2]
[361363554,1747516243534,-171.82,0.00024658,45]
[361363555,1747516243544,-300.0,0.00024665,10]
[361363556,1747516243553,-300.0,0.00024665,10]
[361363557,1747516243563,-300.0,0.00024665,10]
[361363558,1747516243573,-300.0,0.00024665,10]
[361363559,1747516243582,-300.0,0.00024665,10]
[361363560,1747516243592,-300.0,0.00024665,10]
[361363561,1747516243601,-300.0,0.00024665,10]
[361363562,1747516243910,-300.0,0.00024665,10]
[361363563,1747516243919,-16140.85537103,0.00024666,2]
[361363564,1747516243929,-1413.0,0.00024747,2]
[361363565,1747516243938,-300.0,0.00024782,10]
[361363566,1747516243947,-300.0,0.00024782,10]
[361363567,1747516243957,-300.0,0.00024782,10]
[361363568,1747516243966,-300.0,0.00024782,10]
[361363569,1747516243975,-300.0,0.00024782,10]
[361363570,1747516243984,-300.0,0.00024782,10]
[361363571,1747516243993,-300.0,0.00024782,10]
[361363572,1747516244008,-25911.4869381,0.00024783,2]
[361363573,1747516244018,-4660.3311819,0.00024783,2]
[361363574,1747516244027,-28894.1221257,0.00024783,2]
[361363575,1747516244037,-1426.4952801,0.00024783,2]
[361363576,1747516244046,-300.00609993,0.00024799,10]
[361363577,1747516244060,-300.0,0.00024799,10]
[361363578,1747516244070,-300.0,0.00024799,10]
[361363579,1747516244079,-151.0,0.000248,7]
[361363580,1747516244090,-151.0,0.000248,7]
[361363581,1747516244100,-255.437199,0.000248,7]
[361363582,1747516244110,-151.0,0.000248,7]
[361363583,1747516244120,-151.0,0.000248,7]
[361363584,1747516244130,-151.0,0.000248,7]
[361363585,1747516244139,-151.0,0.000248,7]
[361363586,1747516244150,-151.0,0.000248,7]
[361363587,1747516244159,-151.0,0.000248,7]
[361363588,1747516244169,-151.0,0.000248,7]
[361363589,1747516244179,-151.0,0.000248,7]
[361363590,1747516244189,-153.446622,0.000248,7]
[361363591,1747516244201,-151.0,0.000248,7]
[361363592,1747516244211,-151.785726,0.000248,7]
[361363593,1747516244221,-151.0,0.000248,7]
[361363594,1747516244231,-156.937839,0.000248,7]
[361363595,1747516244241,-151.0,0.000248,7]
[361363596,1747516244250,-151.0,0.000248,7]
[361363597,1747516244260,-151.0,0.000248,7]
[361363598,1747516244269,-151.0,0.000248,7]
[361363599,1747516244279,-151.0,0.000248,7]
[361363600,1747516244290,-151.0,0.000248,7]
[361363601,1747516244302,-151.0,0.000248,7]
[361363602,1747516244311,-151.0,0.000248,7]
[361363603,1747516244321,-151.0,0.000248,7]
[361363604,1747516244331,-151.0,0.000248,7]
[361363605,1747516244341,-151.0,0.000248,7]
[361363606,1747516244351,-151.0,0.000248,7]
[361363607,1747516244361,-151.0,0.000248,7]
[361363608,1747516244372,-263.886249,0.000248,7]
[361363609,1747516244381,-151.0,0.000248,7]
[361363610,1747516244392,-151.0,0.000248,7]
[361363611,1747516244401,-151.0,0.000248,7]
[361363612,1747516244411,-157.715481,0.000248,7]
[361363613,1747516244421,-151.0,0.000248,7]
[361363614,1747516244431,-151.0,0.000248,7]
[361363615,1747516244441,-151.0,0.000248,7]
[361363616,1747516244451,-151.0,0.000248,7]
[361363617,1747516244461,-151.0,0.000248,7]
[361363618,1747516244471,-157.975957,0.000248,7]
[361363619,1747516244481,-157.975957,0.000248,7]
[361363620,1747516244492,-263.711982,0.000248,7]
[361363621,1747516244501,-263.711982,0.000248,7]
[361363622,1747516244511,-151.0,0.000248,7]
[361363623,1747516244521,-151.0,0.000248,7]
[361363624,1747516244531,-151.0,0.000248,7]
[361363625,1747516244540,-151.0,0.000248,7]
[361363626,1747516244550,-201.479051,0.000248,7]
[361363627,1747516244560,-331.261018,0.000248,7]
[361363628,1747516244570,-331.261018,0.000248,7]
[361363629,1747516244580,-151.0,0.000248,7]
[361363630,1747516244590,-162.256552,0.000248,7]
[361363631,1747516244600,-174.347394,0.000248,7]
[361363632,1747516244609,-174.347394,0.000248,7]
[361363633,1747516244619,-151.0,0.000248,7]
[361363634,1747516244629,-303.951239,0.000248,7]
[361363635,1747516244639,-303.951239,0.000248,7]
[361363636,1747516244648,-151.0,0.000248,7]
[361363637,1747516244658,-163.259549,0.000248,7]
[361363638,1747516244668,-163.259549,0.000248,7]
[361363639,1747516244678,-151.0,0.000248,7]
[361363640,1747516244687,-151.0,0.000248,7]
[361363641,1747516244697,-151.0,0.000248,7]
[361363642,1747516244708,-151.0,0.000248,7]
[361363643,1747516244718,-151.0,0.000248,7]
[361363644,1747516244728,-151.0,0.000248,7]
[361363645,1747516244737,-151.0,0.000248,7]
[361363646,1747516244747,-151.0,0.000248,7]
[361363647,1747516244756,-151.0,0.000248,7]
[361363648,1747516244766,-151.0,0.000248,7]
[361363649,1747516244776,-151.0,0.000248,7]
[361363650,1747516244786,-843.01902,0.000248,7]
[361363651,1747516244797,-843.01902,0.000248,7]
[361363652,1747516244807,-256.514921,0.000248,7]
[361363653,1747516244818,-151.0,0.000248,7]
[361363654,1747516244829,-151.0,0.000248,7]
[361363655,1747516244838,-151.0,0.000248,7]
[361363656,1747516244848,-151.0,0.000248,7]
[361363657,1747516244858,-151.0,0.000248,7]
[361363658,1747516244868,-151.0,0.000248,7]
[361363659,1747516244877,-151.0,0.000248,7]
[361363660,1747516244887,-151.0,0.000248,7]
[361363661,1747516244897,-151.0,0.000248,7]
[361363662,1747516244906,-151.0,0.000248,7]
[361363663,1747516244916,-151.0,0.000248,7]
[361363664,1747516244926,-151.0,0.000248,7]
[361363665,1747516244935,-423.499667,0.000248,7]
[361363666,1747516244945,-151.0,0.000248,7]
[361363667,1747516244956,-151.0,0.000248,7]
[361363668,1747516244966,-151.0,0.000248,7]
[361363669,1747516244975,-423.499667,0.000248,7]